bitfinex-derivatives/quotes_SOLF0:USTF0_20241024
["timestamp","ask_amount","ask_price","bid_price","bid_amount"]
[1729733316207,5.82,172.75,172.64,2.8989]
[1729733316208,11.11099647,172.74,172.64,2.8989]
[1729733316409,11.11099647,172.73,172.63,11.11099647]
[1729733316599,5.82,172.72,172.65,11.11099647]
[1729733316808,5.82,172.71,172.66,2.7629]
[1729733317000,11.11099647,172.75,172.66,2.7629]
[1729733317310,5.82,172.71,172.7,2.8979]
[1729733317494,5.82,172.72,172.67,11.11099647]
[1729733318406,5.82,172.72,172.71,2.8977]
[1729733318710,16.93099647,172.72,172.64,1.4082]
[1729733319103,5.82,172.71,172.7,2.8978]
[1729733319408,5.82,172.71,172.64,1.4082]
[1729733319708,5.82,172.71,172.67,2.8983]
[1729733321904,5.82,172.71,172.64,1.4082]
[1729733321905,5.82,172.71,172.68,2.8982]
[1729733322203,5.82,172.71,172.64,1.4082]
[1729733322501,5.82,172.71,172.69,2.8979]
[1729733322903,5.82,172.71,172.64,1.4082]
[1729733323212,5.8,172.71,172.65,11.11099647]
[1729733323513,5.8,172.71,172.66,1.4392]
[1729733323708,5.8,172.71,172.7,2.8979]
[1729733325511,1.4065,172.79,172.66,2.849]
[1729733325512,5.8,172.72,172.66,2.849]
[1729733325713,5.8,172.72,172.67,11.11099647]
[1729733326122,5.8,172.72,172.71,2.8977]
[1729733329106,11.11099647,172.77,172.67,2.87399201]
[1729733329313,11.11099647,172.71,172.66,2.849]
[1729733329519,11.11099647,172.73,172.66,2.849]
[1729733329819,11.11099647,172.73,172.71,2.8976]
[1729733330215,5.8,172.76,172.66,2.849]
[1729733330413,11.11099647,172.73,172.66,2.849]
[1729733330817,11.11099647,172.73,172.7,2.8977]
[1729733331219,1.4065,172.79,172.74,2.8971]
[1729733331420,11.11099647,172.76,172.66,2.849]
[1729733331719,5.8,172.75,172.66,2.849]
[1729733332113,5.8,172.75,172.72,2.8975]
[1729733332514,5.8,172.75,172.66,2.849]
[1729733332714,16.91099647,172.75,172.66,2.849]
[1729733332922,16.91099647,172.75,172.68,2.8981]
[1729733333110,16.91099647,172.75,172.66,2.849]
[1729733333718,16.91099647,172.75,172.72,2.8974]
[1729733334520,16.91099647,172.75,172.73,2.8974]
[1729733335825,16.91099647,172.75,172.74,2.8972]
[1729733336329,12.91950662,172.75,172.74,2.8972]
[1729733337816,12.91968654,172.75,172.74,2.8972]
[1729733339622,5.8,172.75,172.74,2.8972]
[1729733339926,12.91968654,172.75,172.74,2.8972]
[1729733340725,5.8,172.75,172.74,2.8972]
[1729733341223,12.91968654,172.75,172.69,7.11968654]
[1729733342230,12.91968654,172.75,172.74,2.8972]
[1729733342531,5.8,172.76,172.7,7.11968654]
[1729733342731,7.11968654,172.75,172.71,1.3394]
[1729733344232,7.11968654,172.75,172.74,2.8972]
[1729733344425,7.11968654,172.74,172.71,1.3394]
[1729733344627,5.8,172.76,172.71,2.8977]
[1729733344824,7.11968654,172.73,172.68,7.11968654]
[1729733345526,7.11968654,172.73,172.72,2.8976]
[1729733346826,4.1966,172.8,172.72,7.11968654]
[1729733346827,5.8,172.8,172.72,7.11968654]
[1729733347032,5.8,172.8,172.76,7.11968654]
[1729733347231,5.8,172.8,172.78,2.8964]
[1729733347733,5.8,172.8,172.76,7.11968654]
[1729733347939,5.8,172.8,172.77,2.8966]
[1729733348232,12.91968654,172.8,172.77,2.8966]
[1729733349133,5.8,172.8,172.74,8.46328654]
[1729733349335,7.11968654,172.81,172.74,8.46328654]
[1729733349534,2.7219,172.89,172.78,7.11968654]
[1729733349740,7.11968654,172.86,172.82,2.8957]
[1729733350629,5.8,172.88,172.74,1.3436]
[1729733350832,7.11723187,172.85,172.83,2.8957]
[1729733351231,7.11723187,172.85,172.83,2.8956]
[1729733352232,7.11723187,172.85,172.8,7.11723187]
[1729733352929,5.8,172.86,172.8,7.11723187]
[1729733353130,5.8,172.86,172.81,7.11723187]
[1729733353332,7.11723187,172.84,172.74,1.3436]
[1729733353533,7.11723187,172.82,172.76,7.11723187]
[1729733355137,7.11723187,172.82,172.79,2.8963]
[1729733355937,7.11723187,172.82,172.78,2.8964]
[1729733356144,7.11723187,172.82,172.78,10.01363187]
[1729733356931,7.11723187,172.82,172.78,2.8964]
[1729733358236,7.11723187,172.81,172.78,2.8964]
[1729733360138,7.11723187,172.82,172.78,2.8964]
[1729733361441,5.8,172.85,172.81,7.11723187]
[1729733361844,5.8,172.85,172.8,7.11723187]
[1729733362145,5.8,172.85,172.8,10.01343187]
[1729733362348,5.8,172.85,172.81,7.11723187]
[1729733363541,5.8,172.85,172.81,10.01323187]
[1729733364544,5.8,172.85,172.82,2.8959]
[1729733365250,12.91723187,172.85,172.74,1.3436]
[1729733365451,7.11723187,172.83,172.79,2.8962]
[1729733365651,7.11723187,172.83,172.78,7.11723187]
[1729733366148,7.11723187,172.83,172.8,2.8962]
[1729733367756,10.01283187,172.84,172.8,2.8962]
[1729733372845,7.11723187,172.84,172.8,2.8962]
[1729733374256,7.11723187,172.84,172.81,2.896]
[1729733377452,2.8958,172.83,172.77,7.11723187]
[1729733378157,2.8958,172.83,172.8,2.8962]
[1729733378458,2.8958,172.83,172.77,7.11723187]
[1729733378665,7.11723187,172.84,172.77,7.11723187]
[1729733378856,7.11723187,172.82,172.8,2.8962]
[1729733381151,7.11723187,172.81,172.74,1.3436]
[1729733381349,7.11723187,172.79,172.77,2.8966]
[1729733381661,12.91723187,172.79,172.77,2.8966]
[1729733383059,12.91723187,172.79,172.76,2.8968]
[1729733383653,5.8,172.79,172.75,7.11723187]
[1729733383857,5.8,172.79,172.76,2.8969]
[1729733384257,7.11723187,172.77,172.72,2.8974]
[1729733384463,7.11723187,172.78,172.73,7.11723187]
[1729733385865,7.11723187,172.78,172.73,2.8972]
[1729733386159,7.11723187,172.78,172.73,10.01443187]
[1729733386365,7.11723187,172.78,172.74,2.8971]
[1729733387863,7.11723187,172.78,172.73,7.11723187]
[1729733388066,7.11723187,172.78,172.75,2.8969]
[1729733389769,12.91723187,172.79,172.77,2.8967]
[1729733390666,1.3207,172.89,172.69,155.07846584]
[1729733390667,7.11723187,172.81,172.76,7.11723187]
[1729733390968,5.78,172.8,172.79,2.8963]
[1729733392769,2.8953,172.86,172.81,2.896]
[1729733392971,7.11723187,172.83,172.81,2.896]
[1729733393460,1.3207,172.89,172.7,5.78]
[1729733393677,5.78,172.88,172.83,7.11723187]
[1729733394372,7.11723187,172.86,172.81,7.11723187]
[1729733395874,7.11723187,172.86,172.83,2.8957]
[1729733397672,8.6749,172.88,172.83,2.8957]
[1729733397874,7.11723187,172.87,172.83,2.8957]
[1729733398873,12.89723187,172.88,172.84,2.8954]
[1729733399274,12.89723187,172.88,172.82,7.11723187]
[1729733400072,62.54,172.94,172.86,7.11723187]
[1729733400376,12.89723187,172.92,172.86,7.11723187]
[1729733400574,7.11723187,172.9,172.88,2.8948]
[1729733400776,7.11723187,172.89,172.76,4.1391]
[1729733401069,7.11723187,172.85,172.8,7.11723187]
[1729733401272,12.89723187,172.85,172.83,2.8957]
[1729733402376,5.78,172.85,172.83,2.8957]
[1729733403673,5.78,172.85,172.83,10.01293187]
[1729733406774,5.78,172.85,172.83,2.8957]
[1729733407074,5.78,172.85,172.83,10.01293187]
[1729733408578,5.78,172.85,172.83,7.11723187]
[1729733408878,7.11723187,172.84,172.76,4.1391]
[1729733409081,5.78,172.85,172.77,7.11723187]
[1729733409082,7.11723187,172.81,172.77,7.11723187]
[1729733410077,7.11723187,172.81,172.78,2.8965]
[1729733410283,7.11723187,172.81,172.77,7.11723187]
[1729733410581,12.89723187,172.8,172.76,2.7521]
[1729733411674,5.78,172.8,172.76,2.7521]
[1729733411868,5.78,172.8,172.78,2.8965]
[1729733415677,5.78,172.8,172.76,2.7521]
[1729733416280,5.78,172.8,172.76,9.86933187]
[1729733416480,5.78,172.8,172.78,2.8965]
[1729733419386,5.78,172.8,172.77,2.8966]
[1729733419588,5.78,172.8,172.76,2.7521]
[1729733420791,5.78,172.8,172.78,2.8964]
[1729733421986,5.78,172.8,172.76,9.86933187]
[1729733422190,5.78,172.8,172.79,2.8964]
[1729733423181,12.89723187,172.8,172.72,1.3549]
[1729733423491,7.11723187,172.78,172.76,2.8968]
[1729733423701,7.11723187,172.77,172.7,2.6401]
[1729733423993,7.11723187,172.76,172.71,7.11723187]
[1729733424187,7.11723187,172.77,172.74,2.8971]
[1729733424786,5.76,172.79,172.76,7.11723187]
[1729733424987,5.76,172.79,172.77,7.11723187]
[1729733425182,5.76,172.79,172.76,7.11723187]
[1729733425383,5.76,172.79,172.75,7.11723187]
[1729733425580,7.11723187,172.77,172.72,7.11723187]
[1729733425985,5.76,172.79,172.74,2.8971]
[1729733426190,5.76,172.79,172.65,1.4287]
[1729733426191,7.11723187,172.75,172.65,1.4287]
[1729733426389,7.11723187,172.72,172.67,7.11723187]
[1729733426792,7.11723187,172.72,172.69,2.8979]
[1729733427194,7.11723187,172.72,172.67,7.11723187]
[1729733427986,12.87723187,172.74,172.68,7.11723187]
[1729733428295,7.11723187,172.79,172.73,7.11723187]
[1729733428493,5.76,172.78,172.73,7.11723187]
[1729733428691,5.76,172.78,172.75,2.8969]
[1729733428896,5.76,172.78,172.73,7.11723187]
[1729733429992,5.76,172.78,172.75,2.8969]
[1729733430388,12.87723187,172.78,172.75,2.8969]
[1729733431703,7.11723187,172.76,172.65,9.9445]
[1729733431902,7.11723187,172.75,172.7,7.11723187]
[1729733432396,7.11723187,172.72,172.65,4.1845]
[1729733432598,12.87723187,172.72,172.67,7.11723187]
[1729733432802,5.76,172.72,172.71,7.11723187]
[1729733433102,8.52673187,172.77,172.74,2.8972]
[1729733433297,5.76,172.76,172.74,2.8972]
[1729733433501,12.87723187,172.76,172.74,2.8972]
[1729733433703,12.87723187,172.76,172.73,2.8974]
[1729733433893,7.11723187,172.74,172.69,7.11723187]
[1729733434095,7.11723187,172.73,172.68,7.11723187]
[1729733434302,7.11723187,172.73,172.7,2.8978]
[1729733434607,7.11723187,172.73,172.68,7.11723187]
[1729733435805,7.11723187,172.73,172.7,2.8978]
[1729733438406,2.8971,172.75,172.7,2.8978]
[1729733438407,7.11723187,172.72,172.7,2.8978]
[1729733438719,5.76,172.71,172.7,2.8978]
[1729733438902,12.87723187,172.71,172.7,2.8978]
[1729733439105,12.87723187,172.71,172.65,2.7627]
[1729733439303,12.87723187,172.71,172.63,7.11723187]
[1729733439304,7.11723187,172.68,172.63,7.11723187]
[1729733439712,7.11723187,172.67,172.6,1.4208]
[1729733440009,5.76,172.66,172.63,2.8989]
[1729733440407,5.76,172.66,172.64,2.8989]
[1729733441301,5.76,172.66,172.59,2.6831]
[1729733441302,7.11723187,172.65,172.59,2.6831]
[1729733441503,7.11723187,172.64,172.6,7.11723187]
[1729733441698,7.11723187,172.64,172.59,9.80033187]
[1729733442100,7.11723187,172.64,172.61,2.8992]
[1729733442302,5.76,172.66,172.59,2.6831]
[1729733442704,5.76,172.65,172.62,2.8992]
[1729733442902,5.76,172.66,172.61,11.13451323]
[1729733443101,5.76,172.66,172.63,11.13451323]
[1729733444309,1.4162,172.75,172.63,11.13451323]
[1729733444310,12.55071323,172.75,172.63,11.13451323]
[1729733444618,5.74,172.74,172.66,11.13451323]
[1729733444805,5.74,172.73,172.68,11.13451323]
[1729733445802,5.74,172.73,172.71,2.8976]
[1729733450909,5.74,172.73,172.65,1.3566]
[1729733451106,11.13451323,172.72,172.62,11.13451323]
[1729733452114,11.13451323,172.72,172.67,2.8983]
[1729733452309,5.74,172.73,172.64,11.13451323]
[1729733452514,5.74,172.73,172.72,2.8976]
[1729733453417,5.74,172.73,172.66,11.13451323]
[1729733453615,5.74,172.73,172.71,2.8976]
[1729733453813,5.74,172.72,172.66,11.13451323]
[1729733454223,5.74,172.72,172.69,2.8979]
[1729733454518,16.87451323,172.72,172.64,11.13451323]
[1729733454709,16.87451323,172.72,172.62,11.13451323]
[1729733455312,19.77221323,172.72,172.65,2.8986]
[1729733455618,16.87451323,172.72,172.62,11.13451323]
[1729733456625,16.87451323,172.72,172.67,2.8984]
[1729733457027,16.87451323,172.72,172.62,11.13451323]
[1729733457219,5.74,172.72,172.64,11.13451323]
[1729733458026,5.74,172.71,172.64,11.13451323]
[1729733458223,5.74,172.71,172.66,11.13451323]
[1729733459027,5.74,172.71,172.7,2.8979]
[1729733459224,1.3783,172.8,172.69,11.13451323]
[1729733459431,1.3783,172.8,172.71,11.13451323]
[1729733459626,12.54871323,172.81,172.71,11.13451323]
[1729733459819,12.54871323,172.81,172.73,11.13451323]
[1729733459820,1.4142,172.81,172.73,11.13451323]
[1729733460027,5.74,172.81,172.8,2.8961]
[1729733462129,73.69451323,172.88,172.82,2.8959]
[1729733462326,5.74,172.87,172.82,2.8959]
[1729733462527,73.69451323,172.88,172.76,1.3373]
[1729733462528,73.69451323,172.88,172.8,11.13451323]
[1729733462728,5.74,172.87,172.86,2.8951]
[1729733463229,5.74,172.87,172.85,2.8953]
[1729733463533,5.74,172.87,172.77,2.7273]
[1729733463534,11.13451323,172.86,172.77,13.86181323]
[1729733463725,5.74,172.87,172.79,11.13451323]
[1729733464034,5.74,172.87,172.81,11.13451323]
[1729733464228,5.74,172.87,172.86,2.8952]
[1729733464526,62.56,172.88,172.86,2.8952]
[1729733464728,5.74,172.87,172.86,2.8952]
[1729733465127,11.13451323,172.93,172.83,11.13451323]
[1729733465431,5.74,172.92,172.83,11.13451323]
[1729733465826,5.74,172.92,172.87,2.895]
[1729733466132,5.72,172.91,172.87,2.895]
[1729733466918,16.85451323,172.91,172.87,2.895]
[1729733467117,16.85451323,172.91,172.81,11.13451323]
[1729733467118,19.74891323,172.91,172.81,11.13451323]
[1729733467320,16.85451323,172.91,172.81,11.13451323]
[1729733467932,16.85451323,172.91,172.84,2.8955]
[1729733468132,16.85451323,172.91,172.81,11.13451323]
[1729733468740,16.85451323,172.91,172.85,2.8952]
[1729733469035,5.72,172.9,172.85,11.13451323]
[1729733469233,12.16001323,172.95,172.9,2.8945]
[1729733469234,5.72,172.91,172.9,2.8945]
[1729733470327,5.72,172.92,172.91,2.8942]
[1729733470722,5.72,172.92,172.85,11.13451323]
[1729733471223,5.72,172.92,172.9,2.8945]
[1729733473926,62.54,172.97,172.94,2.8938]
[1729733474128,5.7,172.97,172.92,11.13451323]
[1729733474333,12.45291323,173.02,172.92,11.13451323]
[1729733474334,5.7,172.99,172.92,11.13451323]
[1729733474735,5.7,172.99,172.94,2.8939]
[1729733474925,5.7,172.99,172.92,11.13451323]
[1729733476239,11.13451323,172.98,172.87,11.13451323]
[1729733476833,11.13451323,172.96,172.86,4.0651]
[1729733477024,11.13451323,172.94,172.86,4.0651]
[1729733477226,5.7,172.93,172.86,4.0651]
[1729733477426,5.7,172.93,172.87,2.895]
[1729733478139,5.7,172.93,172.88,2.8948]
[1729733478632,11.13451323,172.9,172.85,2.8953]
[1729733479228,11.13451323,172.9,172.8,13.92561323]
[1729733481938,11.13451323,172.9,172.85,2.8954]
[1729733487042,14.02881323,172.92,172.85,2.8954]
[1729733487234,5.7,172.89,172.85,2.8954]
[1729733488237,5.7,172.89,172.8,13.92561323]
[1729733488845,5.7,172.89,172.81,2.896]
[1729733488846,11.13451323,172.85,172.81,2.896]
[1729733489044,5.7,172.84,172.75,13.92581323]
[1729733490344,11.13451323,172.83,172.75,2.7913]
[1729733490650,5.7,172.84,172.75,13.92581323]
[1729733490952,5.7,172.84,172.77,11.13451323]
[1729733491154,5.7,172.84,172.8,2.8961]
[1729733493455,5.7,172.84,172.81,2.896]
[1729733496065,5.7,172.84,172.77,11.13451323]
[1729733496255,5.7,172.84,172.82,2.8958]
[1729733496460,5.7,172.84,172.77,11.13451323]
[1729733496649,5.7,172.84,172.79,2.8964]
[1729733496960,5.7,172.84,172.77,11.13451323]
[1729733497152,5.7,172.84,172.78,1.3429]
[1729733497352,5.7,172.84,172.82,2.8958]
[1729733498157,5.7,172.84,172.78,1.3429]
[1729733499362,5.7,172.84,172.82,2.8959]
[1729733500458,5.7,172.84,172.79,2.8963]
[1729733500653,5.7,172.84,172.75,13.92581323]
[1729733501459,5.7,172.84,172.8,2.8961]
[1729733503465,5.7,172.84,172.81,2.896]
[1729733506765,11.13451323,172.89,172.79,11.13451323]
[1729733507065,5.68,172.88,172.8,1.3954]
[1729733507267,5.68,172.88,172.82,2.8958]
[1729733507466,5.68,172.88,172.8,1.3954]
[1729733507862,5.68,172.88,172.82,2.8958]
[1729733508065,5.68,172.88,172.81,11.13451323]
[1729733509363,5.68,172.88,172.85,2.8953]
[1729733509967,63.8516,172.93,172.8,1.3954]
[1729733509968,5.68,172.87,172.8,1.3954]
[1729733510172,5.68,172.87,172.77,11.13451323]
[1729733510173,5.68,172.86,172.77,11.13451323]
[1729733511059,11.13451323,172.85,172.76,6.9925]
[1729733511460,11.13451323,172.85,172.76,1.3125]
[1729733511868,11.13451323,172.83,172.76,1.3125]
[1729733512472,11.13451323,172.81,172.75,2.7913]
[1729733512671,5.68,172.8,172.72,1.3775]
[1729733512881,5.68,172.8,172.77,2.8967]
[1729733513469,11.13451323,172.79,172.74,2.8972]
[1729733515874,11.13451323,172.79,172.75,2.897]
[1729733516984,11.13451323,172.79,172.76,2.8969]
[1729733517278,2.8966,172.78,172.71,1.4067]
[1729733517489,11.13451323,172.77,172.67,12.46251323]
[1729733519274,11.13451323,172.77,172.73,2.8973]
[1729733520490,11.13451323,172.77,172.67,12.46251323]
[1729733521376,14.03141323,172.77,172.7,2.8979]
[1729733521573,14.03141323,172.77,172.67,12.46251323]
[1729733522982,14.03141323,172.77,172.71,2.8976]
[1729733523480,14.03141323,172.77,172.67,12.46251323]
[1729733524081,11.13451323,172.79,172.69,11.13451323]
[1729733524886,11.13451323,172.76,172.67,1.328]
[1729733525088,5.68,172.75,172.67,1.328]
[1729733525289,5.68,172.75,172.68,11.13451323]
[1729733526388,5.68,172.75,172.72,2.8974]
[1729733528487,11.13451323,172.74,172.66,1.4]
[1729733528785,11.13451323,172.72,172.66,1.4]
[1729733528984,11.13451323,172.72,172.68,2.8981]
[1729733529188,11.13451323,172.72,172.66,1.4]
[1729733530187,11.13451323,172.72,172.68,2.8981]
[1729733530388,11.13451323,172.72,172.62,1.3218]
[1729733530787,11.13451323,172.74,172.7,2.8979]
[1729733531692,11.13451323,172.74,172.65,11.13451323]
[1729733533391,11.13451323,172.74,172.7,2.8978]
[1729733534292,11.13451323,172.74,172.65,11.13451323]
[1729733534691,5.66,172.75,172.74,2.8972]
[1729733534995,5.66,172.75,172.67,11.13451323]
[1729733535896,5.66,172.75,172.71,2.8977]
[1729733537389,5.66,172.75,172.67,11.13451323]
[1729733537588,5.66,172.75,172.73,2.8973]
[1729733537794,5.66,172.75,172.67,11.13451323]
[1729733538386,5.66,172.75,172.7,2.8979]
[1729733538592,5.66,172.75,172.65,11.13451323]
[1729733538793,5.66,172.75,172.66,2.8984]
[1729733538794,2.8975,172.73,172.66,2.8984]
[1729733539096,11.13451323,172.71,172.66,2.8984]
[1729733539390,11.13451323,172.69,172.62,1.3218]
[1729733539602,11.13451323,172.69,172.62,4.2209]
[1729733539790,11.13451323,172.69,172.58,11.13451323]
[1729733539989,11.13451323,172.69,172.59,1.3846]
[1729733540191,11.13451323,172.67,172.61,2.8994]
[1729733540592,11.13451323,172.67,172.59,1.3846]
[1729733540994,11.13451323,172.67,172.62,2.8991]
[1729733541194,11.13451323,172.65,172.56,1.2815]
[1729733541499,11.13451323,172.63,172.52,1.2984]
[1729733541701,11.13451323,172.63,172.51,12.51911323]
[1729733541702,5.68,172.62,172.51,13.86221323]
[1729733541896,11.13451323,172.6,172.54,2.9005]
[1729733542303,9.8304,172.62,172.51,4.0261]
[1729733542304,11.13451323,172.58,172.51,4.0261]
[1729733542506,5.68,172.57,172.51,2.7277]
[1729733542899,5.68,172.57,172.52,2.9008]
[1729733543599,11.13451323,172.56,172.47,12.43291323]
[1729733544001,5.68,172.57,172.47,12.43291323]
[1729733544210,5.68,172.57,172.48,2.6861]
[1729733544406,5.68,172.57,172.52,2.9008]
[1729733544607,5.68,172.56,172.49,11.13451323]
[1729733544904,5.68,172.56,172.51,2.9011]
[1729733545205,5.68,172.56,172.49,11.13451323]
[1729733547112,16.81451323,172.58,172.48,2.6861]
[1729733548805,11.13451323,172.58,172.49,11.13451323]
[1729733549118,5.68,172.57,172.51,11.13451323]
[1729733549408,5.68,172.56,172.51,11.13451323]
[1729733549608,5.68,172.56,172.48,2.6861]
[1729733549609,5.68,172.56,172.49,11.13451323]
[1729733550514,5.68,172.56,172.53,2.9006]
[1729733550709,11.13451323,172.59,172.49,11.13451323]
[1729733550915,5.68,172.55,172.54,2.9006]
[1729733551115,5.68,172.56,172.54,2.9006]
[1729733551313,5.68,172.56,172.52,11.13451323]
[1729733551511,5.68,172.56,172.54,2.9005]
[1729733553011,5.68,172.56,172.52,11.13451323]
[1729733553212,5.68,172.56,172.55,2.9004]
[1729733553413,5.68,172.56,172.52,11.13451323]
[1729733553713,5.68,172.56,172.5,2.9012]
[1729733553714,11.13451323,172.55,172.5,2.9012]
[1729733554711,11.13451323,172.55,172.48,2.6861]
[1729733555324,5.68,172.54,172.49,11.13451323]
[1729733556107,5.68,172.54,172.48,2.6861]
[1729733556310,5.68,172.54,172.46,11.13451323]
[1729733556721,5.68,172.54,172.47,1.2611]
[1729733556917,5.68,172.54,172.48,11.13451323]
[1729733557120,5.68,172.54,172.53,2.9007]
[1729733557618,5.68,172.54,172.48,11.13451323]
[1729733557817,5.68,172.54,172.51,2.901]
[1729733558022,5.68,172.54,172.48,11.13451323]
[1729733558225,5.68,172.54,172.52,2.9008]
[1729733559022,5.68,172.54,172.53,2.9007]
[1729733559326,11.13451323,172.58,172.48,11.13451323]
[1729733559327,5.68,172.55,172.48,11.13451323]
[1729733560028,5.68,172.55,172.52,2.9008]
[1729733560823,5.68,172.55,172.54,2.9006]
[1729733562023,5.68,172.55,172.53,2.9007]
[1729733562225,5.68,172.55,172.5,11.13451323]
[1729733562618,5.68,172.55,172.54,2.9006]
[1729733563021,5.68,172.56,172.5,11.13451323]
[1729733563220,5.68,172.56,172.55,2.9003]
[1729733564531,5.66,172.56,172.55,2.9003]
[1729733564733,11.13451323,172.6,172.5,11.13451323]
[1729733565030,1.251,172.62,172.52,11.13451323]
[1729733565031,12.38551323,172.62,172.52,11.13451323]
[1729733565227,5.66,172.61,172.54,11.13451323]
[1729733565527,5.66,172.61,172.57,2.9]
[1729733566419,5.66,172.61,172.56,2.9002]
[1729733566823,5.66,172.61,172.53,1.3776]
[1729733567028,11.13451323,172.59,172.54,2.9005]
[1729733567428,11.13451323,172.59,172.53,2.9006]
[1729733567627,11.13451323,172.59,172.5,11.13451323]
[1729733568035,11.13451323,172.59,172.54,2.9005]
[1729733568729,16.79451323,172.61,172.52,11.13451323]
[1729733569326,19.69401323,172.61,172.54,2.9004]
[1729733569520,11.13451323,172.59,172.54,2.9004]
[1729733570326,11.13451323,172.59,172.5,11.13451323]
[1729733570522,11.13451323,172.59,172.53,2.9007]
[1729733570831,14.03431323,172.59,172.53,2.9007]
[1729733571030,11.13451323,172.59,172.53,2.9007]
[1729733571432,11.13451323,172.59,172.5,11.13451323]
[1729733571628,11.13451323,172.59,172.54,2.9005]
[1729733572329,11.13451323,172.59,172.5,11.13451323]
[1729733572535,11.13451323,172.59,172.55,2.9004]
[1729733574839,1.2709,172.6,172.56,2.9001]
[1729733575237,5.66,172.59,172.56,2.9001]
[1729733576032,5.66,172.59,172.57,2.8999]
[1729733577237,5.66,172.58,172.57,2.8999]
[1729733577643,5.66,172.58,172.56,2.9002]
[1729733579545,11.13451323,172.61,172.58,2.8999]
[1729733579845,5.66,172.6,172.58,2.8999]
[1729733580143,13.76281323,172.64,172.61,2.8993]
[1729733580353,5.66,172.63,172.61,2.8993]
[1729733580645,5.66,172.63,172.62,2.8992]
[1729733581939,11.13451323,172.66,172.64,2.8987]
[1729733582134,5.66,172.65,172.57,11.13451323]
[1729733582338,5.66,172.64,172.57,11.13451323]
[1729733582540,5.66,172.64,172.63,2.8991]
[1729733582946,1.3065,172.69,172.6,11.13451323]
[1729733583142,11.13451323,172.7,172.68,2.8982]
[1729733583446,5.66,172.69,172.68,2.8982]
[1729733583641,5.66,172.69,172.62,11.13451323]
[1729733583834,5.66,172.69,172.68,2.8982]
[1729733586242,5.66,172.69,172.6,11.13451323]
[1729733586451,11.13451323,172.68,172.59,5.66]
[1729733586743,11.13451323,172.68,172.58,13.64571323]
[1729733587340,11.13451323,172.68,172.64,2.8989]
[1729733589137,5.66,172.69,172.6,11.13451323]
[1729733589337,5.66,172.69,172.66,2.8984]
[1729733591645,5.66,172.69,172.6,11.13451323]
[1729733591853,5.66,172.69,172.62,11.13451323]
[1729733592943,5.66,172.69,172.67,2.8984]
[1729733593147,5.66,172.69,172.62,11.13451323]
[1729733593342,5.66,172.69,172.65,11.13451323]
[1729733593549,5.66,172.69,172.68,2.8982]
[1729733593748,75.10431323,172.74,172.65,11.13451323]
[1729733593945,75.10431323,172.74,172.72,2.8975]
[1729733593946,5.66,172.73,172.72,2.8975]
[1729733594253,5.66,172.73,172.67,11.13451323]
[1729733594750,5.66,172.73,172.71,2.8977]
[1729733596546,5.66,172.73,172.68,3.8557]
[1729733596547,5.66,172.73,172.72,2.8976]
[1729733597049,5.64,172.75,172.72,2.8976]
[1729733597450,5.64,172.82,172.73,11.13451323]
[1729733597646,5.64,172.81,172.73,11.13451323]
[1729733598353,5.64,172.81,172.75,2.897]
[1729733598553,5.64,172.81,172.73,11.13451323]
[1729733598751,5.64,172.81,172.75,11.13451323]
[1729733599150,5.64,172.81,172.76,2.6057]
[1729733599645,5.64,172.81,172.79,2.8962]
[1729733599848,5.64,172.81,172.77,11.13451323]
[1729733599849,5.64,172.81,172.77,12.48081323]
[1729733600356,5.64,172.81,172.77,1.3463]
[1729733600658,5.64,172.81,172.76,2.6057]
[1729733601352,5.64,172.81,172.78,2.8965]
[1729733602154,5.62,172.84,172.77,11.13451323]
[1729733602655,5.62,172.84,172.79,11.13451323]